bitfinex/quotes_ETHUSD_20260213
["timestamp","ask_amount","ask_price","bid_price","bid_amount"]
[1770995367729,4.98802873,2004.9,2003.2,1.932]
[1770995367880,4.98802873,2004.9,2003.3,3.125087]
[1770995368081,4.98802873,2004.9,2003.2,1.24795808]
[1770995368279,0.1024,2004.8,2003.3,1.932]
[1770995368590,4.98802873,2004.9,2003.2,1.24795808]
[1770995368786,1.24694498,2005.0,2003.3,14.568968]
[1770995369015,1.24694498,2005.0,2003.4,1.931]
[1770995369178,1.24694498,2005.0,2003.2,2.05368608]
[1770995369516,3.66221,2004.9,2003.2,1.24795808]
[1770995369744,4.98753117,2005.1,2003.2,1.24795808]
[1770995369745,4.98653469,2005.5,2003.6,0.805728]
[1770995370013,4.98556052,2005.8,2004.2,0.805728]
[1770995370244,5.88402433,2006.5,2004.2,0.805728]
[1770995370245,1.24495792,2008.2,2006.0,0.805728]
[1770995370533,1.24495792,2008.2,2004.9,0.1024]
[1770995370534,1.24495792,2008.1,2006.2,0.805728]
[1770995370746,1.24495792,2008.1,2006.3,1.52]
[1770995370896,1.24495792,2008.1,2006.4,2.1899]
[1770995371236,4.97983168,2008.5,2006.6,0.8445235]
[1770995371550,0.003,2009.3,2008.2,0.91608623]
[1770995371701,1.24722351,2009.3,2007.6,0.8445235]
[1770995372037,1.24384297,2010.0,2008.1,9.88579158]
[1770995372194,6.13391187,2011.2,2009.7,11.311774]
[1770995372195,1.37486375,2010.6,2009.7,11.311774]
[1770995372390,1.37486375,2010.6,2008.7,0.18685624]
[1770995372391,1.37486375,2010.6,2010.0,10.71167771]
[1770995372597,4.9736397,2010.7,2009.8,10.71167771]
[1770995372798,9.87931515,2010.6,2009.3,10.65167771]
[1770995372998,2.642495,2010.5,2009.5,10.65167771]
[1770995373227,6.421664,2010.5,2008.4,8.0801645]
[1770995373396,1.24343715,2010.6,2008.8,0.18685624]
[1770995373603,5.27107,2010.5,2008.6,2.7725235]
[1770995373927,1.2431626,2011.0,2009.0,0.8445235]
[1770995374104,1.2427918,2011.6,2009.5,17.778363]
[1770995374333,1.2427918,2011.6,2009.6,8.28533158]
[1770995374517,1.24266825,2011.8,2010.0,0.18685624]
[1770995374694,1.24266825,2011.8,2009.4,9.88579158]
[1770995374695,30.0,2012.3,2010.3,0.18685624]
[1770995374899,2.590657,2012.3,2010.3,1.029]
[1770995375099,1.195,2012.2,2010.4,6.878208]
[1770995375317,1.195,2012.2,2009.6,0.8445235]
[1770995375318,9.88579158,2012.0,2009.6,0.8445235]
[1770995375521,4.358,2011.9,2009.7,5.0866]
[1770995375724,4.358,2011.9,2009.7,4.734665]
[1770995375927,4.358,2011.9,2009.7,3.578946]
[1770995376269,4.24417167,2012.4,2010.3,1.03137974]
[1770995376270,0.00485425,2012.4,2010.3,1.03137974]
[1770995376399,0.00485425,2012.4,2010.7,0.8445235]
[1770995376400,1.24715481,2012.4,2010.7,0.8445235]
[1770995376598,1.24715481,2012.4,2010.9,0.8445235]
[1770995376599,1.24715393,2012.4,2010.9,0.8445235]
[1770995376952,1.24715393,2012.4,2011.0,1.411]
[1770995377150,1.24715393,2012.4,2010.9,0.8445235]
[1770995377300,1.24715393,2012.4,2010.9,2.16251544]
[1770995377503,11.977857,2012.3,2010.5,0.36643929]
[1770995377723,11.977857,2012.3,2009.9,3.16884297]
[1770995377724,0.1024,2011.9,2009.9,3.16884297]
[1770995377908,1.194,2011.8,2009.9,3.16884297]
[1770995378109,1.24273002,2011.7,2010.0,0.898]
[1770995378315,1.24273002,2011.7,2010.2,5.970493]
[1770995378513,0.1024,2011.6,2009.7,2.14195362]
[1770995378734,1.24273002,2011.7,2010.2,0.28940588]
[1770995378967,4.96968492,2012.3,2010.4,1.26451544]
[1770995379108,1.24718186,2012.4,2010.7,4.95619644]
[1770995379434,1.24718186,2012.4,2010.9,4.6967]
[1770995379736,1.24718186,2012.4,2011.0,0.29521205]
[1770995379737,1.24718163,2012.4,2011.0,0.29521205]
[1770995379936,1.24718163,2012.4,2010.9,6.977957]
[1770995380143,0.00485425,2012.4,2010.8,2.50774194]
[1770995380307,0.00485425,2012.4,2011.0,0.29521205]
[1770995380308,1.193,2012.3,2011.0,0.29521205]
[1770995380633,4.05568,2012.1,2010.0,1.24378109]
[1770995380836,4.82906,2012.1,2010.1,2.958953]
[1770995381035,0.1024,2012.0,2009.8,4.97557328]
[1770995381336,9.98819158,2012.1,2009.9,11.872695]
[1770995381635,1.192,2012.0,2010.0,11.640081]
[1770995382038,1.24266825,2011.8,2009.9,4.827922]
[1770995382241,0.1024,2011.6,2009.7,1.26451544]
[1770995382537,2.99407,2011.2,2009.5,1.14703435]
[1770995382703,2.99407,2011.2,2009.4,2.14112304]
[1770995382704,0.1024,2011.0,2009.8,0.30103435]
[1770995382906,9.88579158,2011.4,2009.5,5.175656]
[1770995383106,10.34747,2011.2,2009.2,1.24427513]
[1770995383426,13.635879,2011.1,2009.1,2.50880851]
[1770995383738,2.09,2011.0,2009.3,1.026]
[1770995383943,3.10296,2010.9,2009.0,2.27136877]
[1770995384109,1.193,2010.8,2009.2,0.30103435]
[1770995384313,1.193,2010.8,2008.6,0.32795101]
[1770995384509,0.1024,2010.7,2008.8,1.26451544]
[1770995384713,0.1024,2010.7,2008.9,1.923]
[1770995385142,0.1024,2010.7,2008.9,1.026]
[1770995385349,0.897,2011.1,2009.0,4.087965]
[1770995385648,2.089,2011.1,2009.2,5.016359]
[1770995386009,1.2431626,2011.0,2009.2,9.99321661]
[1770995386243,1.2431626,2011.0,2009.3,0.3082544]
[1770995386410,4.14241908,2010.9,2008.6,3.332676]
[1770995386606,5.61397,2010.7,2008.7,1.923]
[1770995386840,5.61397,2010.7,2008.8,1.026]
[1770995387142,8.815182,2010.6,2009.1,0.001]
[1770995387341,1.32018708,2010.7,2009.1,0.001]
[1770995387640,1.193,2010.9,2009.1,1.027]
[1770995388143,1.24328625,2010.8,2009.2,1.025]
[1770995388340,1.24328625,2010.8,2009.1,1.24529083]
[1770995388511,6.67525708,2010.7,2009.1,0.001]
[1770995388711,11.815696,2010.6,2009.1,0.001]
[1770995388913,9.857338,2010.6,2009.1,0.001]
[1770995389109,0.1024,2010.5,2009.1,0.001]
[1770995389321,6.24497,2010.4,2009.1,0.001]
[1770995389548,1.32018708,2010.7,2009.2,0.34010773]
[1770995389748,1.24328625,2010.8,2009.3,1.024]
[1770995389932,2.14013613,2011.1,2009.4,15.99794744]
[1770995390133,0.897,2011.1,2009.7,12.982523]
[1770995390335,2.1401063,2011.1,2009.8,15.593361]
[1770995390643,2.1401068,2011.1,2009.8,5.452199]
[1770995390846,2.1401068,2011.1,2009.8,3.24]
[1770995391010,2.1401068,2011.1,2009.9,1.922]
[1770995391214,1.24273002,2011.7,2010.0,12.820732]
[1770995391413,1.24273002,2011.7,2010.2,24.532238]
[1770995391650,1.24273002,2011.7,2010.3,14.387561]
[1770995391945,1.24273002,2011.7,2010.3,3.671076]
[1770995392144,4.97292011,2011.8,2010.5,1.24347177]
[1770995392646,2.935373,2011.6,2009.9,0.897]
[1770995392852,4.97292011,2011.8,2009.8,6.120834]
[1770995393020,0.1024,2011.6,2009.7,1.24396676]
[1770995393224,11.844401,2011.5,2009.6,2.50850053]
[1770995393423,1.192,2011.4,2009.6,3.53350053]
[1770995393843,1.192,2011.4,2009.7,14.486325]
[1770995394029,1.192,2011.4,2009.6,2.50850053]
[1770995394229,1.24297717,2011.3,2009.6,1.24398509]
[1770995394432,9.88579158,2013.8,2010.8,0.18685624]
[1770995394743,20.10935417,2013.5,2011.4,1.26451544]
[1770995394918,20.10935417,2013.5,2012.4,9.890645]
[1770995394919,31.191,2013.5,2012.4,9.890645]
[1770995395124,30.0,2013.4,2012.4,9.890645]
[1770995395418,1.2415574,2013.6,2012.7,9.890645]
[1770995395958,13.33766158,2013.5,2012.4,9.830645]
[1770995396130,1.24174241,2013.3,2011.5,1.24285359]
[1770995396449,11.89977,2013.1,2011.5,2.13885359]
[1770995396659,11.89977,2013.1,2011.1,4.97141436]
[1770995396660,2.687833,2013.1,2010.9,1.2431626]
[1770995396951,2.088,2013.2,2011.2,14.67420144]
[1770995397127,2.088,2013.2,2011.3,4.798479]
[1770995397452,2.088,2013.2,2011.4,1.92]
[1770995397659,14.85177642,2013.7,2011.4,1.92]
[1770995397660,0.0418,2015.4,2012.5,1.26451544]
[1770995397870,4.95792854,2017.0,2014.2,1.26451544]
[1770995398023,4.95792854,2017.0,2015.6,14.583717]
[1770995398024,10.331258,2016.9,2015.6,14.583717]
[1770995398326,1.192,2016.8,2015.1,2.13661488]
[1770995398657,2.4798,2016.7,2015.7,14.583717]
[1770995398829,16.326011,2016.7,2014.9,1.26451544]
[1770995399029,1.32018708,2016.4,2015.0,14.583717]
[1770995399342,15.86291303,2018.1,2014.5,1.26451544]
[1770995399666,0.24402323,2019.2,2013.9,1.28308698]
[1770995399667,1.48566997,2019.3,2019.0,11.371268]
[1770995399824,2.602677,2018.7,2017.9,0.896]
[1770995400022,0.32447265,2019.5,2018.0,1.03]
[1770995400023,1.56240323,2019.5,2018.0,1.03]
[1770995400277,1.56240323,2019.5,2018.8,18.545575]
[1770995400278,0.32447265,2019.5,2018.8,18.545575]
[1770995400551,3.81736,2019.4,2018.3,18.545575]
[1770995400854,1.56243036,2019.5,2017.6,1.26451544]
[1770995400855,1.56243036,2019.5,2018.5,18.545575]
[1770995401032,1.65704376,2019.5,2018.5,18.545575]
[1770995401238,13.772536,2019.4,2018.3,18.485575]
[1770995401432,28.446495,2019.3,2018.1,18.485575]
[1770995401634,17.133446,2019.1,2018.1,18.485575]
[1770995401954,17.133446,2019.1,2015.6,1.48834176]
[1770995401955,7.885288,2018.3,2017.3,18.485575]
[1770995402261,7.885288,2018.3,2016.2,18.485575]
[1770995402262,9.88579158,2017.6,2016.2,18.485575]
[1770995402424,0.1024,2017.7,2016.7,18.485575]
[1770995402624,8.838222,2017.9,2016.6,18.485575]
[1770995402839,4.53248,2017.7,2016.7,18.485575]
[1770995403155,9.88579158,2017.5,2016.4,18.485575]
[1770995403460,0.1024,2017.2,2016.2,18.485575]
[1770995403656,5.703461,2017.3,2016.2,18.485575]
[1770995403958,5.703461,2017.3,2015.9,19.520575]
[1770995404159,9.838485,2017.0,2015.9,18.485575]
[1770995404366,4.47813,2016.8,2015.6,15.12893903]
[1770995404560,9.98819158,2016.5,2015.2,15.12893903]
[1770995404762,7.81699,2016.4,2015.2,15.12893903]
[1770995405331,0.1024,2016.1,2015.0,15.12893903]
[1770995405531,0.1024,2016.1,2014.2,2.29756908]
[1770995405532,16.826224,2015.7,2014.2,2.29756908]
[1770995405732,9.88579158,2015.5,2014.0,0.24275753]
[1770995405966,1.204,2015.4,2014.0,0.24275753]
[1770995406166,1.24051009,2015.3,2014.0,0.24275753]
[1770995406370,10.805443,2015.2,2014.0,0.24275753]
[1770995406544,9.88579158,2015.0,2014.0,0.24275753]
[1770995406734,1.203,2014.9,2014.0,0.18275753]
[1770995406936,0.1024,2014.8,2014.0,0.18275753]
[1770995407165,0.1024,2014.8,2013.0,2.29756908]
[1770995407468,0.1024,2014.8,2013.0,1.24189239]
[1770995407800,0.895,2015.2,2013.4,2.29756908]
[1770995408069,0.895,2015.2,2013.6,2.29756908]
[1770995408273,1.24063321,2015.1,2013.7,4.22656908]
[1770995408565,1.48825017,2015.8,2013.6,1.24155252]
[1770995408566,1.203,2015.8,2014.1,2.29756908]
[1770995408772,1.24001785,2016.1,2014.3,2.29756908]
[1770995408946,11.47364636,2016.4,2014.5,2.29756908]
[1770995409148,2.461514,2016.3,2014.5,2.29756908]
[1770995409479,2.098,2016.2,2014.5,2.29756908]
[1770995409675,1.23978575,2016.5,2014.8,2.29756908]
[1770995409975,1.23978575,2016.5,2014.9,3.33256908]
[1770995410190,1.23964893,2016.7,2015.1,1.24063321]
[1770995410333,0.895,2017.0,2015.1,1.24063321]
[1770995410334,5.85286614,2017.0,2015.2,2.29756908]
[1770995410705,0.895,2017.0,2015.5,2.29756908]
[1770995410976,1.23903454,2017.7,2015.9,2.29756908]
[1770995411186,5.079781,2017.6,2015.9,2.29756908]
[1770995411336,5.44892,2017.1,2015.3,4.21256908]
[1770995411559,3.757424,2016.9,2015.3,2.29756908]
[1770995411761,7.903499,2016.7,2015.3,2.29756908]
[1770995411999,5.75109,2016.7,2015.3,2.29756908]
[1770995412196,1.239526,2016.9,2015.4,3.53801762]
[1770995412377,1.239526,2016.9,2015.5,2.29756908]
[1770995412559,0.895,2017.2,2015.7,2.29756908]
[1770995412763,2.13436091,2017.2,2015.8,2.29756908]
[1770995413888,2.13436091,2017.2,2014.7,1.48904095]
[1770995413889,9.88579158,2016.5,2014.5,2.29756908]
[1770995414058,4.17396,2016.4,2014.6,2.29756908]
[1770995414262,1.23989485,2016.3,2014.7,2.29756908]
[1770995414656,3.33383766,2016.4,2014.9,2.29756908]
[1770995414856,0.894,2016.4,2015.1,2.29756908]
[1770995415057,0.894,2016.4,2015.3,2.29756908]
[1770995415387,4.757342,2016.3,2014.7,2.29756908]
[1770995415554,1.198,2016.3,2014.7,2.29756908]
[1770995415956,18.879214,2016.2,2014.7,2.29756908]
[1770995416260,9.88579158,2016.0,2014.1,2.29756908]
[1770995416686,12.2493,2016.0,2014.1,2.29756908]
[1770995416886,1.24001785,2016.1,2014.1,2.29756908]
[1770995416887,19.57807687,2015.8,2014.1,2.29756908]
[1770995417087,23.270274,2015.6,2014.1,2.29756908]
[1770995417402,0.894,2015.5,2014.1,2.29756908]
[1770995417960,0.894,2015.5,2014.2,0.31245427]
[1770995418161,2.43701785,2016.1,2014.3,2.29756908]
[1770995418489,2.43701785,2016.1,2014.5,2.29756908]
[1770995418693,2.43701785,2016.1,2014.7,2.29756908]
[1770995418858,2.43701785,2016.1,2014.8,2.29756908]
[1770995419059,2.43701785,2016.1,2014.8,3.32356908]
[1770995419267,2.43701785,2016.1,2014.8,2.29756908]
[1770995419582,11.932937,2016.0,2014.2,2.29756908]
[1770995419760,11.932937,2016.0,2013.8,0.001]
[1770995419761,0.1024,2015.4,2013.8,0.001]
[1770995420104,11.389833,2015.2,2013.8,0.001]
[1770995420341,1.24069478,2015.0,2013.8,0.001]
[1770995420458,9.77615787,2014.7,2013.8,0.001]
[1770995420662,1.196,2014.6,2013.8,0.001]
[1770995420862,2.09,2014.6,2013.0,2.29756908]
[1770995421085,2.09,2014.6,2013.0,1.24192266]
[1770995421295,9.77615787,2014.5,2013.2,2.29756908]
[1770995421590,0.1024,2014.4,2012.7,4.21556908]
[1770995421959,15.107234,2014.3,2012.7,2.29756908]
[1770995422168,2.09,2014.6,2012.7,2.29756908]
[1770995422396,2.09,2014.6,2013.2,2.29756908]
[1770995422397,1.24100273,2014.5,2013.2,2.29756908]
[1770995422916,1.24100273,2014.5,2013.3,4.21556908]
[1770995423094,1.24100273,2014.5,2013.4,2.29756908]
[1770995423272,1.195,2014.4,2013.4,2.29756908]
[1770995423466,1.24100273,2014.5,2013.1,2.29756908]
[1770995423684,1.24100273,2014.5,2012.8,1.24201726]
[1770995423685,1.24100273,2014.5,2013.2,2.29756908]
[1770995424016,8.86401,2014.3,2012.5,0.894]
[1770995424220,7.833545,2014.3,2012.5,0.894]
[1770995424385,1.24118756,2014.2,2012.7,2.29756908]
[1770995424915,1.194,2014.4,2012.7,2.29756908]
[1770995425079,2.13451009,2015.3,2013.1,2.29756908]
[1770995425280,6.72801,2015.1,2013.3,2.29756908]
[1770995425505,5.416458,2015.0,2013.3,2.29756908]
[1770995425674,5.202,2015.0,2013.3,2.29756908]
[1770995425868,4.772074,2014.8,2013.3,2.29756908]
[1770995426181,13.699204,2014.6,2013.3,2.29756908]
[1770995426379,3.00752,2014.3,2012.7,2.29756908]
[1770995426580,1.24106433,2014.4,2012.7,2.29756908]
[1770995426581,1.24106433,2014.4,2012.8,2.29756908]
[1770995426772,1.24106433,2014.4,2013.1,2.29756908]
[1770995427281,1.24106433,2014.4,2013.5,0.001]
[1770995427812,1.24106433,2014.4,2013.1,2.29756908]
[1770995428726,1.191,2014.3,2013.1,2.29756908]
[1770995428875,8.210041,2014.2,2012.7,0.895]
[1770995429179,3.416219,2014.2,2012.6,2.29756908]
[1770995429377,7.473456,2014.1,2012.6,2.29756908]
[1770995429576,8.157248,2014.2,2012.6,2.29756908]
[1770995429780,2.413366,2014.2,2012.6,2.29756908]
[1770995430112,1.24106433,2014.4,2012.8,2.29756908]
[1770995430409,1.24106433,2014.4,2012.9,2.29756908]
[1770995430707,1.24106433,2014.4,2012.3,4.96894409]
[1770995430708,1.24106433,2014.4,2013.0,2.29756908]
[1770995430874,8.18502,2014.3,2012.5,3.37820492]
[1770995431079,0.1024,2014.4,2012.6,2.13600362]
[1770995431287,4.96425734,2014.5,2012.6,2.13600362]
[1770995431491,4.96425734,2014.5,2012.7,1.018]
[1770995431689,4.96425734,2014.5,2012.8,2.13600362]
[1770995431891,14.511099,2014.9,2013.4,2.13600362]
[1770995432185,4.96048534,2016.0,2013.9,2.13600362]
[1770995432502,4.9614601,2015.6,2014.1,2.13600362]
[1770995432713,0.003,2015.7,2014.3,2.13600362]
[1770995432907,0.003,2015.7,2014.3,0.895]
[1770995433210,0.003,2015.7,2014.4,2.13600362]
[1770995434419,0.003,2015.7,2014.6,2.13600362]
[1770995434624,0.003,2015.7,2014.9,2.13600362]
[1770995434988,0.003,2015.7,2014.9,2.4486164]
[1770995435314,0.003,2015.7,2014.9,2.13600362]
[1770995435683,4.95959546,2016.3,2014.9,2.13600362]
[1770995435884,1.23958746,2016.8,2015.1,2.13600362]
[1770995436627,1.23958746,2016.8,2014.8,3.15278654]
[1770995436628,0.7726538,2019.6,2016.1,9.77615787]
[1770995436915,0.7726538,2019.6,2015.2,9.60684948]
[1770995436916,1.3332583,2018.4,2017.0,2.29790398]
[1770995437278,2.143359,2018.3,2017.0,2.29790398]
[1770995437602,1.3332583,2018.4,2017.0,2.29790398]
[1770995437949,0.0946134,2018.4,2017.2,9.849619]
[1770995438129,1.33322806,2018.4,2017.3,2.29790398]
[1770995438437,0.0946134,2018.4,2017.4,2.29790398]
[1770995438655,1.56244373,2019.5,2017.9,2.29790398]
[1770995438810,1.56244373,2019.5,2017.8,1.23897313]
[1770995438811,1.56241791,2019.5,2018.3,2.29790398]
[1770995439161,1.56241791,2019.5,2018.5,2.29790398]
[1770995439311,1.188,2019.4,2016.4,1.48773413]
[1770995439508,14.655505,2019.3,2017.2,2.29790398]
[1770995439739,3.734019,2019.3,2017.4,2.29790398]
[1770995439925,2.442,2019.3,2017.4,2.29790398]
[1770995440136,2.442,2019.3,2017.0,0.3168836]
[1770995440137,9.77615787,2018.8,2017.0,0.3168836]
[1770995440328,9.77615787,2018.8,2016.8,2.29790398]
[1770995440329,4.713332,2018.6,2016.8,2.29790398]
[1770995440536,0.1024,2018.0,2016.1,2.29790398]
[1770995440720,1.23878895,2018.1,2016.5,2.29790398]
[1770995440915,1.23878895,2018.1,2016.6,2.29790398]
[1770995441347,1.23878895,2018.1,2016.7,2.29790398]
[1770995441664,0.002,2018.2,2016.9,2.29790398]
[1770995441949,1.24072923,2018.2,2017.1,2.29790398]
[1770995442125,0.002,2018.2,2017.2,1.909]
[1770995442314,0.002,2018.2,2017.2,4.20690398]
[1770995442517,0.002,2018.4,2017.4,2.29790398]
[1770995442884,0.32447265,2019.5,2017.6,2.29790398]
[1770995442885,1.23799148,2019.4,2017.6,2.29790398]
[1770995443220,6.542511,2019.3,2017.6,2.29790398]
[1770995443461,1.23799148,2019.4,2017.7,1.909]
[1770995443658,1.56242275,2019.5,2017.9,2.29790398]
[1770995443822,1.56242275,2019.5,2017.8,1.014]
[1770995444223,18.01394872,2021.5,2018.3,2.29790398]
[1770995444558,18.01394872,2021.5,2017.9,3.874]
[1770995444559,1.23731749,2020.5,2019.5,21.89301]
[1770995444732,1.48001736,2020.6,2019.8,21.89301]
[1770995445242,1.48001736,2020.6,2019.0,0.894]
[1770995445243,8.639475,2020.5,2019.0,0.894]
[1770995445460,2.30639,2020.5,2019.0,0.894]
[1770995445661,3.55901736,2020.6,2018.9,1.23828807]
[1770995445861,3.55901736,2020.6,2018.3,1.015]
[1770995445862,11.003809,2020.3,2018.3,1.015]
[1770995446037,0.1024,2020.2,2018.3,1.015]
[1770995446240,6.54127,2020.5,2018.4,0.893]
[1770995446439,2.319,2020.4,2018.4,0.893]
[1770995446679,1.48003766,2020.6,2019.0,2.29790398]
[1770995446843,1.48003766,2020.6,2019.2,2.29790398]
[1770995447175,0.24275753,2020.6,2019.2,2.29790398]
[1770995447377,0.00509696,2022.1,2020.1,2.29790398]
[1770995447569,1.24144503,2022.1,2020.3,2.29790398]
[1770995447878,25.96614987,2022.0,2020.0,0.37725852]
[1770995448047,2.987192,2021.6,2019.7,3.31490398]
[1770995448244,8.108862,2021.9,2019.8,12.125754]
[1770995448482,1.24144503,2022.1,2020.1,2.29790398]
[1770995448656,0.00509696,2022.1,2020.6,2.29790398]
[1770995448845,0.00509696,2022.1,2020.7,1.911]
[1770995449346,4.5012,2022.0,2020.4,0.3823173]
[1770995449546,1.19,2021.9,2020.0,1.018]
[1770995449747,21.138588,2021.6,2019.9,0.893]
[1770995449956,9.77615787,2021.5,2019.9,0.893]
[1770995450247,2.18863101,2022.1,2020.0,3.05790398]
[1770995450248,0.1024,2021.9,2020.0,3.05790398]
[1770995450674,1.23658307,2021.7,2020.1,1.23756249]
[1770995451156,1.23658307,2021.7,2020.2,2.29790398]
[1770995451757,0.1024,2021.5,2020.0,0.76]
[1770995451956,19.526897,2021.2,2019.1,1.909]
[1770995452172,11.01274094,2021.7,2019.4,2.29790398]
[1770995452381,12.355437,2021.4,2019.1,1.909]
[1770995452685,2.42582778,2021.3,2019.7,2.29790398]
[1770995452888,1.23682778,2021.3,2019.8,3.31490398]
[1770995453091,1.23682778,2021.3,2019.9,3.19090398]
[1770995453899,1.23682778,2021.3,2020.0,0.30018468]
[1770995454066,1.23682778,2021.3,2019.9,3.19090398]
[1770995454258,2.42452191,2021.9,2020.1,17.91057798]
[1770995454455,4.94632044,2021.8,2020.3,6.883737]
[1770995454658,0.002,2021.1,2020.4,1.23737873]
[1770995454858,0.002,2021.1,2020.3,1.23739493]
[1770995455077,0.002,2021.1,2020.1,1.014]
[1770995456180,0.002,2021.1,2020.3,10.074666]
[1770995456396,0.002,2021.1,2020.3,2.29790398]
[1770995456713,0.00509696,2022.1,2020.5,1.23731749]
[1770995456859,0.00509696,2022.1,2020.7,11.313312]
[1770995457064,0.00509696,2022.1,2020.8,1.905]
[1770995457594,0.00509696,2022.1,2020.1,2.25056249]
[1770995457595,21.340353,2022.0,2020.1,2.25056249]
[1770995457810,24.591649,2021.8,2020.1,1.013]
[1770995458017,0.1024,2021.9,2019.9,2.12968403]
[1770995458018,3.118642,2021.6,2019.9,2.12968403]
[1770995458205,1.184,2021.8,2020.1,2.29790398]
[1770995458409,4.4682,2021.7,2020.1,2.29790398]
[1770995458595,1.23646075,2021.9,2020.2,1.23750123]
[1770995458914,2.41946075,2021.9,2020.3,1.012]
[1770995459516,9.917063,2021.8,2019.9,2.12963792]
[1770995459719,0.1024,2021.7,2019.9,0.892]
[1770995459886,14.910849,2021.8,2019.9,2.12965309]
[1770995460089,3.82681,2021.8,2020.0,2.29790398]
[1770995460426,13.026488,2021.6,2019.9,0.892]
[1770995460642,13.026488,2021.6,2019.5,2.29790398]
[1770995460643,15.002346,2021.3,2019.5,2.29790398]
[1770995460806,2.898,2021.3,2019.4,2.24898756]
[1770995461009,2.075,2021.2,2019.6,2.41768371]
[1770995461208,11.495133,2021.1,2019.2,4.95238122]
[1770995461439,8.750133,2021.1,2019.2,4.95238122]
[1770995461603,1.185,2021.0,2019.3,0.31970491]
[1770995461811,1.23676659,2021.4,2019.3,17.938784]
[1770995462012,1.23676659,2021.4,2019.6,2.41768371]
[1770995462732,1.23688897,2021.2,2019.7,1.23780759]
[1770995462901,1.23688897,2021.2,2019.2,4.95196593]
[1770995463107,1.23688897,2021.2,2019.3,2.41768371]
[1770995463301,1.23688897,2021.2,2019.2,1.2381141]
[1770995463302,1.23688897,2021.2,2019.6,2.41768371]
[1770995463510,1.23688897,2021.2,2019.8,2.41768371]
[1770995463833,1.23688897,2021.2,2019.9,1.011]
[1770995464258,1.23688897,2021.2,2019.3,2.41768371]
[1770995464439,1.23688897,2021.2,2019.7,1.011]
[1770995464646,1.183,2021.1,2019.7,1.011]
[1770995464844,1.183,2021.1,2019.8,1.23774631]
[1770995464845,1.23701138,2021.0,2019.8,1.23774631]
[1770995465019,1.23701138,2021.0,2019.4,4.95195575]
[1770995465361,1.23701138,2021.0,2019.3,2.2490471]
[1770995465553,1.23701138,2021.0,2019.3,3.6557365]
[1770995465846,3.31201138,2021.0,2019.3,3.6557365]
[1770995466159,3.31201138,2021.0,2019.2,6.85521116]
[1770995466160,9.77615787,2020.7,2019.2,0.892]
[1770995466452,16.832703,2020.6,2018.7,3.65605942]
[1770995466646,9.77615787,2020.2,2018.4,0.892]
[1770995466948,15.008308,2020.0,2018.4,0.892]
[1770995467175,0.1024,2019.7,2017.7,1.23903454]
[1770995467320,0.892,2019.6,2017.9,2.41768371]
[1770995467521,2.075,2019.6,2017.9,2.41768371]
[1770995467864,4.94975993,2020.4,2018.3,2.41768371]
[1770995468150,1.183,2020.0,2018.5,7.766273]
[1770995468320,1.183,2020.0,2018.5,4.458357]
[1770995468519,4.94975993,2020.7,2018.6,2.41768371]
[1770995468748,1.23725626,2020.6,2019.0,1.23823675]
[1770995468922,1.23896899,2021.1,2019.5,2.41768371]
[1770995469118,1.23896899,2021.1,2019.7,4.2364]
[1770995469350,0.002,2021.1,2019.9,2.41768371]
[1770995469846,0.002,2021.1,2020.2,13.111392]
[1770995470066,1.2389776,2021.1,2019.6,8.84335071]
[1770995470266,1.2389776,2021.1,2019.9,0.892]
[1770995470829,0.002,2021.1,2020.0,1.23762376]
[1770995471721,0.002,2021.1,2020.1,4.790269]
[1770995471921,0.002,2021.1,2020.1,4.11495]
[1770995472152,0.002,2021.1,2020.0,1.23762376]
[1770995472535,0.002,2021.1,2020.1,4.001]
[1770995472744,0.002,2021.1,2020.2,1.23750123]
[1770995473367,1.23664424,2021.6,2020.3,1.011]
[1770995473572,1.23663141,2021.7,2020.4,10.584767]
[1770995473734,1.24147864,2022.1,2020.5,2.41768371]
[1770995473933,1.24147864,2022.1,2020.7,30.0]
[1770995473934,0.00509696,2022.1,2020.7,30.0]
[1770995474157,1.18,2022.0,2020.8,0.892]
[1770995474452,18.512476,2021.9,2020.0,0.892]
[1770995474631,12.3575713,2021.8,2020.0,0.892]
[1770995474822,1.23664424,2021.6,2020.0,2.12956721]
[1770995475023,4.483951,2021.5,2020.0,0.892]
[1770995475224,7.007001,2021.4,2020.0,0.892]
[1770995475655,9.77615787,2021.0,2019.3,0.892]
[1770995475855,2.58141343,2021.3,2019.6,0.34477931]
[1770995475856,2.072,2020.9,2019.6,0.34477931]
[1770995476023,2.072,2020.9,2019.3,2.13004351]
[1770995476227,1.33904424,2021.6,2019.4,19.73106271]
[1770995476228,1.23664424,2021.6,2019.4,19.73106271]
[1770995476427,2.072,2021.5,2019.5,2.68134012]
[1770995476651,19.647731,2021.4,2019.4,2.41768371]
[1770995476859,1.23682778,2021.3,2019.5,1.23793018]
[1770995477457,24.039724,2021.0,2019.2,1.2381141]
[1770995477753,3.71584121,2021.3,2019.3,0.31605434]
[1770995477754,3.633,2021.2,2019.3,0.31605434]
[1770995477924,3.633,2021.2,2019.3,3.901374]
[1770995478126,2.47901343,2021.1,2019.2,1.2381141]
[1770995478325,2.47901343,2020.9,2018.7,4.95367228]
[1770995478557,15.328144,2020.7,2018.8,2.13035942]
[1770995478758,1.23731749,2020.5,2018.8,3.14235942]
[1770995479059,1.23731749,2020.5,2018.8,1.23835942]
[1770995479277,1.23731749,2020.5,2018.7,1.012]
[1770995479426,16.274312,2020.4,2018.7,1.012]
[1770995479626,1.23731749,2020.5,2018.7,1.012]
[1770995479832,12.05712343,2020.4,2018.7,1.012]
[1770995480058,12.05712343,2020.4,2017.8,0.1024]
[1770995480059,2.47901343,2020.0,2018.1,1.23878895]
[1770995480451,2.072,2019.9,2018.1,1.23878895]
[1770995480656,15.038071,2019.8,2018.1,1.23878895]
[1770995480963,1.23780759,2019.7,2018.1,1.23878895]
[1770995481169,1.23780759,2019.7,2018.9,0.001]
[1770995481544,1.23737873,2020.4,2018.9,0.001]
[1770995481739,4.948469,2020.9,2019.0,9.01898371]
[1770995481938,4.948469,2020.9,2019.1,6.548252]
[1770995482137,2.824385,2020.8,2018.9,0.001]